[Event "Titled Tuesday Blitz June 6 Early 2023"]
[White "splendidkid"]
[Black "Sourath Biswas"]
[BlackFideId "35091484"]
[WhiteElo "2758"]
[BlackElo "2171"]
[Result "0-1"]
[Round "9"]
[TimeControl "180+2"]
[Date "2023.06.06"]
[WhiteClock "0:00:05"]
[BlackClock "0:00:35"]
[Board "27"]

1. d4 {[%clk 0:02:10]}  Nf6 {[%clk 0:02:58]} 2. c4 {[%clk 0:02:10]}  g6 {[%clk 0:02:59]} 3. Nf3 {[%clk 0:02:10]}  Bg7 {[%clk 0:02:59]} 4. Nc3 {[%clk 0:02:10]}  O-O {[%clk 0:02:59]} 5. Bf4 {[%clk 0:02:08]}  c5 {[%clk 0:02:53]} 6. e3 {[%clk 0:02:07]}  cxd4 {[%clk 0:02:53]} 7. exd4 {[%clk 0:02:08]}  d5 {[%clk 0:02:54]} 8. h3 {[%clk 0:02:07]}  Nc6 {[%clk 0:02:54]} 9. Be2 {[%clk 0:02:05]}  b6 {[%clk 0:02:28]} 10. O-O {[%clk 0:01:59]}  Bb7 {[%clk 0:02:28]} 11. Ne5 {[%clk 0:01:31]}  dxc4 {[%clk 0:02:12]} 12. Bf3 {[%clk 0:01:21]}  Rc8 {[%clk 0:02:10]} 13. Qa4 {[%clk 0:01:21]}  Qxd4 {[%clk 0:01:58]} 14. Bxc6 {[%clk 0:01:13]}  Qxf4 {[%clk 0:01:05]} 15. Bxb7 {[%clk 0:01:12]}  Rc7 {[%clk 0:01:05]} 16. Nxf7 {[%clk 0:00:39]}  Rxb7 {[%clk 0:01:02]} 17. g3 {[%clk 0:00:37]}  Qf5 {[%clk 0:00:56]} 18. g4 {[%clk 0:00:32]}  Nxg4 {[%clk 0:00:53]} 19. Qc6 {[%clk 0:00:31]}  Rbb8 {[%clk 0:00:36]} 20. Qxc4 {[%clk 0:00:31]}  Rxf7 {[%clk 0:00:36]} 21. hxg4 {[%clk 0:00:30]}  Qf4 {[%clk 0:00:36]} 22. Qe6 {[%clk 0:00:29]}  Qe5 {[%clk 0:00:22]} 23. Rae1 {[%clk 0:00:25]}  Qxe6 {[%clk 0:00:22]} 24. Rxe6 {[%clk 0:00:26]}  Rc8 {[%clk 0:00:22]} 25. Nd5 {[%clk 0:00:26]}  Kf8 {[%clk 0:00:21]} 26. b3 {[%clk 0:00:24]}  Rd8 {[%clk 0:00:20]} 27. Ne3 {[%clk 0:00:21]}  Rd2 {[%clk 0:00:20]} 28. Rc6 {[%clk 0:00:16]}  Bd4 {[%clk 0:00:18]} 29. Nd1 {[%clk 0:00:15]}  Rxa2 {[%clk 0:00:17]} 30. Kg2 {[%clk 0:00:14]}  Rd2 {[%clk 0:00:15]} 31. Kg3 {[%clk 0:00:15]}  Rd3+ {[%clk 0:00:15]} 32. Kh4 {[%clk 0:00:13]}  Rxb3 {[%clk 0:00:16]} 33. f4 {[%clk 0:00:14]}  Bf6+ {[%clk 0:00:15]} 34. g5 {[%clk 0:00:14]}  Be5 {[%clk 0:00:15]} 35. Kg4 {[%clk 0:00:14]}  Rb4 {[%clk 0:00:15]} 36. Kh3 {[%clk 0:00:09]}  Rfxf4 {[%clk 0:00:15]} 37. Rxf4+ {[%clk 0:00:10]}  Rxf4 {[%clk 0:00:15]} 38. Ne3 {[%clk 0:00:10]}  Rf3+ {[%clk 0:00:15]} 39. Kg4 {[%clk 0:00:09]}  Rxe3 {[%clk 0:00:16]} 40. Rc4 {[%clk 0:00:08]}  Rg3+ {[%clk 0:00:15]} 41. Kh4 {[%clk 0:00:08]}  Rf3 {[%clk 0:00:16]} 42. Kg4 {[%clk 0:00:02]}  Rf4+ {[%clk 0:00:16]} 43. Rxf4+ {[%clk 0:00:02]}  Bxf4 {[%clk 0:00:17]} 44. Kxf4 {[%clk 0:00:03]}  a5 {[%clk 0:00:18]} 45. Ke5 {[%clk 0:00:03]}  a4 {[%clk 0:00:19]} 46. Kd4 {[%clk 0:00:04]}  a3 {[%clk 0:00:20]} 47. Kc3 {[%clk 0:00:04]}  e5 {[%clk 0:00:21]} 48. Kb3 {[%clk 0:00:04]}  Ke7 {[%clk 0:00:21]} 49. Kxa3 {[%clk 0:00:05]}  Ke6 {[%clk 0:00:22]} 50. Kb4 {[%clk 0:00:05]}  Kf5 {[%clk 0:00:23]} 51. Kc4 {[%clk 0:00:05]}  Kxg5 {[%clk 0:00:24]} 52. Kd3 {[%clk 0:00:04]}  Kf4 {[%clk 0:00:25]} 53. Ke2 {[%clk 0:00:04]}  b5 {[%clk 0:00:26]} 54. Kd3 {[%clk 0:00:04]}  b4 {[%clk 0:00:27]} 55. Kc4 {[%clk 0:00:04]}  h5 {[%clk 0:00:28]} 56. Kxb4 {[%clk 0:00:04]}  h4 {[%clk 0:00:29]} 57. Kc4 {[%clk 0:00:03]}  h3 {[%clk 0:00:29]} 58. Kd5 {[%clk 0:00:03]}  h2 {[%clk 0:00:30]} 59. Ke6 {[%clk 0:00:04]}  h1=Q {[%clk 0:00:31]} 60. Kf6 {[%clk 0:00:04]}  g5 {[%clk 0:00:31]} 61. Kg6 {[%clk 0:00:04]}  g4 {[%clk 0:00:32]} 62. Kf6 {[%clk 0:00:04]}  g3 {[%clk 0:00:33]} 63. Ke6 {[%clk 0:00:05]}  g2 {[%clk 0:00:34]} 64. Kd5 {[%clk 0:00:05]}  e4 {[%clk 0:00:35]} 65. Kd4 {[%clk 0:00:05]}  e3 {[%clk 0:00:36]} 66. Kd3 {[%clk 0:00:06]}  e2 {[%clk 0:00:37]} 67. Kd2 {[%clk 0:00:05]}  e1=Q+ {[%clk 0:00:37]} 68. Kd3 {[%clk 0:00:06]}  g1=Q {[%clk 0:00:36]} 69. Kc2 {[%clk 0:00:05]}  Qc6+ {[%clk 0:00:36]} 70. Kd3 {[%clk 0:00:05]}  Qge3# {[%clk 0:00:35]} 0-1


[Site "https://www.chess.com"]

[Event "Titled Tuesday Blitz June 6 Early 2023"]
[White "Chylewski, Patryk"]
[Black "demon64fields"]
[WhiteFideId "1186191"]
[WhiteElo "2163"]
[BlackElo "2833"]
[Result "0-1"]
[Round "9"]
[TimeControl "180+2"]
[Date "2023.06.06"]
[WhiteClock "0:00:01"]
[BlackClock "0:02:12"]
[Board "30"]

1. e4 {[%clk 0:03:00]}  g6 {[%clk 0:02:59]} 2. d4 {[%clk 0:03:00]}  Bg7 {[%clk 0:03:00]} 3. Nc3 {[%clk 0:03:01]}  a6 {[%clk 0:03:00]} 4. a4 {[%clk 0:03:00]}  d6 {[%clk 0:02:59]} 5. Be3 {[%clk 0:03:00]}  Nd7 {[%clk 0:02:59]} 6. g4 {[%clk 0:02:53]}  b6 {[%clk 0:02:57]} 7. Bg2 {[%clk 0:02:53]}  Bb7 {[%clk 0:02:56]} 8. Nge2 {[%clk 0:02:51]}  e6 {[%clk 0:02:52]} 9. O-O {[%clk 0:02:50]}  h5 {[%clk 0:02:50]} 10. g5 {[%clk 0:02:50]}  Ne7 {[%clk 0:02:49]} 11. h4 {[%clk 0:02:46]}  O-O {[%clk 0:02:49]} 12. Ng3 {[%clk 0:02:32]}  c5 {[%clk 0:02:49]} 13. Qd2 {[%clk 0:02:04]}  Rc8 {[%clk 0:02:48]} 14. Rad1 {[%clk 0:01:59]}  cxd4 {[%clk 0:02:48]} 15. Bxd4 {[%clk 0:02:00]}  Ne5 {[%clk 0:02:48]} 16. Bxe5 {[%clk 0:01:40]}  Bxe5 {[%clk 0:02:49]} 17. f4 {[%clk 0:01:40]}  Bg7 {[%clk 0:02:37]} 18. Qxd6 {[%clk 0:01:35]}  Qxd6 {[%clk 0:02:33]} 19. Rxd6 {[%clk 0:01:36]}  Bxc3 {[%clk 0:02:33]} 20. bxc3 {[%clk 0:01:36]}  Rxc3 {[%clk 0:02:34]} 21. Rd7 {[%clk 0:01:13]}  Bc6 {[%clk 0:02:33]} 22. Rxe7 {[%clk 0:01:11]}  Rxg3 {[%clk 0:02:33]} 23. Kh2 {[%clk 0:00:49]}  Rc3 {[%clk 0:02:33]} 24. Rf2 {[%clk 0:00:36]}  Bxa4 {[%clk 0:02:33]} 25. Rb7 {[%clk 0:00:32]}  b5 {[%clk 0:02:32]} 26. f5 {[%clk 0:00:26]}  Rxc2 {[%clk 0:02:31]} 27. Rxc2 {[%clk 0:00:22]}  Bxc2 {[%clk 0:02:32]} 28. fxg6 {[%clk 0:00:22]}  fxg6 {[%clk 0:02:32]} 29. Rb6 {[%clk 0:00:19]}  Kf7 {[%clk 0:02:22]} 30. Rxa6 {[%clk 0:00:19]}  Rb8 {[%clk 0:02:21]} 31. Ra7+ {[%clk 0:00:18]}  Kf8 {[%clk 0:02:22]} 32. Bh3 {[%clk 0:00:16]}  Rb6 {[%clk 0:02:15]} 33. e5 {[%clk 0:00:08]}  b4 {[%clk 0:02:15]} 34. Ra8+ {[%clk 0:00:07]}  Ke7 {[%clk 0:02:15]} 35. Ra7+ {[%clk 0:00:07]}  Kd8 {[%clk 0:02:15]} 36. Ra8+ {[%clk 0:00:04]}  Kc7 {[%clk 0:02:15]} 37. Ra2 {[%clk 0:00:05]}  b3 {[%clk 0:02:15]} 38. Rb2 {[%clk 0:00:05]}  Bf5 {[%clk 0:02:15]} 39. Bg2 {[%clk 0:00:03]}  Rb5 {[%clk 0:02:15]} 40. Bf1 {[%clk 0:00:02]}  Rb4 {[%clk 0:02:14]} 41. Kg3 {[%clk 0:00:02]}  Kb6 {[%clk 0:02:15]} 42. Be2 {[%clk 0:00:02]}  Bc2 {[%clk 0:02:11]} 43. Bf3 {[%clk 0:00:01]}  Kc5 {[%clk 0:02:12]} 44. Be2 {[%clk 0:00:01]}  Kd4 {[%clk 0:02:12]} 0-1


[Site "https://www.chess.com"]

[Event "Titled Tuesday Blitz June 6 Early 2023"]
[White "Reprintsev, Alexander"]
[Black "Dragnev, Valentin"]
[WhiteFideId "14100541"]
[BlackFideId "1634852"]
[WhiteElo "2229"]
[BlackElo "2487"]
[Result "1-0"]
[Round "9"]
[TimeControl "180+2"]
[Date "2023.06.06"]
[WhiteClock "0:01:01"]
[BlackClock "0:00:50"]
[Board "31"]

1. e4 {[%clk 0:03:00]}  c6 {[%clk 0:02:58]} 2. b3 {[%clk 0:02:58]}  d5 {[%clk 0:02:59]} 3. Qe2 {[%clk 0:02:58]}  dxe4 {[%clk 0:02:59]} 4. Nc3 {[%clk 0:02:59]}  Nf6 {[%clk 0:02:57]} 5. Nxe4 {[%clk 0:02:59]}  Qd4 {[%clk 0:02:48]} 6. Nc3 {[%clk 0:02:58]}  Bf5 {[%clk 0:02:44]} 7. Nf3 {[%clk 0:02:56]}  Qd8 {[%clk 0:02:40]} 8. Bb2 {[%clk 0:02:51]}  Nbd7 {[%clk 0:02:40]} 9. O-O-O {[%clk 0:02:50]}  e6 {[%clk 0:02:40]} 10. Nh4 {[%clk 0:02:49]}  Bg6 {[%clk 0:02:28]} 11. Nxg6 {[%clk 0:02:48]}  hxg6 {[%clk 0:02:29]} 12. f4 {[%clk 0:02:45]}  Bd6 {[%clk 0:02:28]} 13. g3 {[%clk 0:02:45]}  Qa5 {[%clk 0:02:26]} 14. Kb1 {[%clk 0:02:44]}  O-O-O {[%clk 0:02:24]} 15. Bg2 {[%clk 0:02:44]}  Kb8 {[%clk 0:02:24]} 16. Bf3 {[%clk 0:02:26]}  Ba3 {[%clk 0:02:23]} 17. Ba1 {[%clk 0:02:25]}  Bb4 {[%clk 0:02:23]} 18. Qg2 {[%clk 0:02:24]}  Nb6 {[%clk 0:02:17]} 19. Rhe1 {[%clk 0:02:17]}  Nbd5 {[%clk 0:02:11]} 20. Nxd5 {[%clk 0:02:14]}  cxd5 {[%clk 0:02:10]} 21. Be5+ {[%clk 0:02:11]}  Bd6 {[%clk 0:02:10]} 22. g4 {[%clk 0:02:04]}  Bxe5 {[%clk 0:02:09]} 23. fxe5 {[%clk 0:02:04]}  Nd7 {[%clk 0:02:09]} 24. h4 {[%clk 0:02:04]}  Rc8 {[%clk 0:02:05]} 25. h5 {[%clk 0:02:00]}  Rc6 {[%clk 0:02:01]} 26. hxg6 {[%clk 0:01:59]}  Ra6 {[%clk 0:01:59]} 27. a4 {[%clk 0:01:59]}  Nc5 {[%clk 0:01:57]} 28. Be2 {[%clk 0:01:55]}  Rb6 {[%clk 0:01:53]} 29. Bb5 {[%clk 0:01:48]}  a6 {[%clk 0:01:44]} 30. Qf2 {[%clk 0:01:48]}  Ne4 {[%clk 0:01:29]} 31. Rxe4 {[%clk 0:01:45]}  dxe4 {[%clk 0:01:29]} 32. gxf7 {[%clk 0:01:45]}  Rf8 {[%clk 0:01:30]} 33. Rf1 {[%clk 0:01:28]}  Rxf7 {[%clk 0:00:51]} 34. Qxf7 {[%clk 0:01:27]}  axb5 {[%clk 0:00:51]} 35. Qe8+ {[%clk 0:01:25]}  Ka7 {[%clk 0:00:49]} 36. Rf8 {[%clk 0:01:25]}  Rc6 {[%clk 0:00:49]} 37. Qa8+ {[%clk 0:01:24]}  Kb6 {[%clk 0:00:49]} 38. Qd8+ {[%clk 0:01:13]}  Ka6 {[%clk 0:00:50]} 39. Qd4 {[%clk 0:01:01]} 1-0


[Site "https://www.chess.com"]

[Event "Titled Tuesday Blitz June 6 Early 2023"]
[White "Zhigalko, Sergei"]
[Black "Fiorito, Joaquin"]
[WhiteFideId "13502956"]
[BlackFideId "180173"]
[WhiteElo "2626"]
[BlackElo "2199"]
[Result "1-0"]
[Round "9"]
[TimeControl "180+2"]
[Date "2023.06.06"]
[WhiteClock "0:00:50"]
[BlackClock "0:00:33"]
[Board "32"]

1. e4 {[%clk 0:03:00]}  c6 {[%clk 0:02:59]} 2. d4 {[%clk 0:03:01]}  d5 {[%clk 0:02:59]} 3. e5 {[%clk 0:03:02]}  Bf5 {[%clk 0:03:00]} 4. Nf3 {[%clk 0:03:02]}  e6 {[%clk 0:03:00]} 5. Be2 {[%clk 0:03:03]}  c5 {[%clk 0:03:01]} 6. O-O {[%clk 0:03:04]}  Nc6 {[%clk 0:03:01]} 7. c3 {[%clk 0:03:05]}  Bg4 {[%clk 0:03:02]} 8. Nbd2 {[%clk 0:03:02]}  Rc8 {[%clk 0:02:58]} 9. h3 {[%clk 0:03:02]}  Bxf3 {[%clk 0:02:58]} 10. Nxf3 {[%clk 0:03:03]}  cxd4 {[%clk 0:02:58]} 11. cxd4 {[%clk 0:03:04]}  Nge7 {[%clk 0:02:58]} 12. Bd3 {[%clk 0:02:57]}  Qb6 {[%clk 0:02:47]} 13. Be3 {[%clk 0:02:49]}  g6 {[%clk 0:02:34]} 14. Qd2 {[%clk 0:02:38]}  Nf5 {[%clk 0:02:33]} 15. Bxf5 {[%clk 0:02:33]}  gxf5 {[%clk 0:02:34]} 16. Rac1 {[%clk 0:02:32]}  Rg8 {[%clk 0:02:33]} 17. a3 {[%clk 0:02:18]}  a5 {[%clk 0:02:20]} 18. Rc3 {[%clk 0:02:17]}  Be7 {[%clk 0:02:17]} 19. Rfc1 {[%clk 0:02:17]}  Kd7 {[%clk 0:02:15]} 20. Ne1 {[%clk 0:01:48]}  f4 {[%clk 0:02:07]} 21. Bxf4 {[%clk 0:01:46]}  Nxd4 {[%clk 0:02:02]} 22. Be3 {[%clk 0:01:37]}  Nb3 {[%clk 0:02:02]} 23. Qd1 {[%clk 0:01:20]}  Rxc3 {[%clk 0:01:15]} 24. Rxc3 {[%clk 0:01:09]}  Nc5 {[%clk 0:01:15]} 25. Nd3 {[%clk 0:01:09]}  d4 {[%clk 0:00:36]} 26. Bxd4 {[%clk 0:01:02]}  Qc6 {[%clk 0:00:34]} 27. Nxc5+ {[%clk 0:01:02]}  Ke8 {[%clk 0:00:33]} 28. Qf3 {[%clk 0:00:50]} 1-0


[Site "https://www.chess.com"]

[Event "Titled Tuesday Blitz June 6 Early 2023"]
[White "Tejedor Fuente, Enrique"]
[Black "Sielecki, Christof"]
[WhiteFideId "2299100"]
[BlackFideId "4620437"]
[WhiteElo "2496"]
[BlackElo "2443"]
[Result "1/2-1/2"]
[Round "9"]
[TimeControl "180+2"]
[Date "2023.06.06"]
[WhiteClock "0:00:06"]
[BlackClock "0:00:09"]
[Board "33"]

1. Nf3 {[%clk 0:02:55]}  d5 {[%clk 0:02:59]} 2. b4 {[%clk 0:02:53]}  Nf6 {[%clk 0:02:57]} 3. Bb2 {[%clk 0:02:46]}  Bg4 {[%clk 0:02:57]} 4. e3 {[%clk 0:02:45]}  e6 {[%clk 0:02:54]} 5. a3 {[%clk 0:02:44]}  Nbd7 {[%clk 0:02:53]} 6. Be2 {[%clk 0:02:42]}  Bd6 {[%clk 0:02:53]} 7. O-O {[%clk 0:02:43]}  O-O {[%clk 0:02:51]} 8. d4 {[%clk 0:02:42]}  Ne4 {[%clk 0:02:44]} 9. c4 {[%clk 0:02:42]}  c6 {[%clk 0:02:36]} 10. Nbd2 {[%clk 0:02:27]}  f5 {[%clk 0:02:34]} 11. b5 {[%clk 0:02:21]}  Rf6 {[%clk 0:02:27]} 12. bxc6 {[%clk 0:02:13]}  bxc6 {[%clk 0:02:27]} 13. Nxe4 {[%clk 0:02:13]}  fxe4 {[%clk 0:02:23]} 14. Ne5 {[%clk 0:02:14]}  Bxe2 {[%clk 0:02:19]} 15. Qxe2 {[%clk 0:02:14]}  Bxe5 {[%clk 0:02:16]} 16. dxe5 {[%clk 0:02:14]}  Rf5 {[%clk 0:02:16]} 17. cxd5 {[%clk 0:02:14]}  cxd5 {[%clk 0:02:16]} 18. Qa6 {[%clk 0:02:05]}  Qb6 {[%clk 0:02:10]} 19. Qxb6 {[%clk 0:01:54]}  axb6 {[%clk 0:02:05]} 20. Bd4 {[%clk 0:01:52]}  Nxe5 {[%clk 0:02:01]} 21. Bxb6 {[%clk 0:01:40]}  Nc4 {[%clk 0:02:01]} 22. Bc5 {[%clk 0:01:39]}  Rf7 {[%clk 0:01:55]} 23. Rfb1 {[%clk 0:01:31]}  Rc7 {[%clk 0:01:55]} 24. Bb4 {[%clk 0:01:28]}  Rca7 {[%clk 0:01:52]} 25. Rb3 {[%clk 0:01:19]}  Kf7 {[%clk 0:01:52]} 26. h3 {[%clk 0:01:18]}  h5 {[%clk 0:01:51]} 27. Bc5 {[%clk 0:01:18]}  Rc7 {[%clk 0:01:46]} 28. Bd4 {[%clk 0:01:17]}  e5 {[%clk 0:01:41]} 29. Bc3 {[%clk 0:01:16]}  Ke6 {[%clk 0:01:35]} 30. a4 {[%clk 0:01:16]}  Rca7 {[%clk 0:01:33]} 31. a5 {[%clk 0:01:12]}  Nxa5 {[%clk 0:01:28]} 32. Rb6+ {[%clk 0:01:11]}  Kf5 {[%clk 0:01:28]} 33. g4+ {[%clk 0:01:10]}  hxg4 {[%clk 0:01:27]} 34. hxg4+ {[%clk 0:01:11]}  Kxg4 {[%clk 0:01:25]} 35. Rd6 {[%clk 0:00:56]}  Nc4 {[%clk 0:00:46]} 36. Rxa7 {[%clk 0:00:54]}  Rxa7 {[%clk 0:00:47]} 37. Rxd5 {[%clk 0:00:54]}  Kf3 {[%clk 0:00:42]} 38. Bxe5 {[%clk 0:00:47]}  Ra5 {[%clk 0:00:21]} 39. Rxa5 {[%clk 0:00:30]}  Nxa5 {[%clk 0:00:22]} 40. Bxg7 {[%clk 0:00:30]}  Nc4 {[%clk 0:00:23]} 41. Bc3 {[%clk 0:00:28]}  Nd6 {[%clk 0:00:22]} 42. Kf1 {[%clk 0:00:27]}  Nf5 {[%clk 0:00:22]} 43. Bd4 {[%clk 0:00:26]}  Nh6 {[%clk 0:00:22]} 44. Bf6 {[%clk 0:00:20]}  Ng4 {[%clk 0:00:20]} 45. Bh4 {[%clk 0:00:20]}  Ne5 {[%clk 0:00:20]} 46. Bg3 {[%clk 0:00:19]}  Nd3 {[%clk 0:00:20]} 47. Bh4 {[%clk 0:00:19]}  Ne5 {[%clk 0:00:19]} 48. Ke1 {[%clk 0:00:15]}  Nd3+ {[%clk 0:00:16]} 49. Kf1 {[%clk 0:00:14]}  Nc1 {[%clk 0:00:15]} 50. Be7 {[%clk 0:00:10]}  Nb3 {[%clk 0:00:13]} 51. Bb4 {[%clk 0:00:08]}  Nc1 {[%clk 0:00:12]} 52. Be7 {[%clk 0:00:06]}  Nd3 {[%clk 0:00:09]} 53. Bh4 {[%clk 0:00:06]} 1/2-1/2


[Site "https://www.chess.com"]

[Event "Titled Tuesday Blitz June 6 Early 2023"]
[White "Domingo Nunez, Alejandro"]
[Black "Djordjevic, Vuk"]
[WhiteFideId "22245561"]
[BlackFideId "902098"]
[WhiteElo "2291"]
[BlackElo "2463"]
[Result "0-1"]
[Round "9"]
[TimeControl "180+2"]
[Date "2023.06.06"]
[WhiteClock "0:00:21"]
[BlackClock "0:00:10"]
[Board "35"]

1. Nf3 {[%clk 0:03:00]}  e6 {[%clk 0:02:59]} 2. g3 {[%clk 0:03:00]}  d5 {[%clk 0:02:59]} 3. Bg2 {[%clk 0:03:01]}  Nf6 {[%clk 0:02:58]} 4. O-O {[%clk 0:03:02]}  Be7 {[%clk 0:02:58]} 5. c4 {[%clk 0:03:01]}  O-O {[%clk 0:02:58]} 6. b3 {[%clk 0:03:02]}  c6 {[%clk 0:02:58]} 7. Bb2 {[%clk 0:03:02]}  a5 {[%clk 0:02:58]} 8. d4 {[%clk 0:02:37]}  b5 {[%clk 0:02:56]} 9. Ne5 {[%clk 0:02:35]}  bxc4 {[%clk 0:02:41]} 10. bxc4 {[%clk 0:02:35]}  Nfd7 {[%clk 0:02:41]} 11. Nxd7 {[%clk 0:02:26]}  Nxd7 {[%clk 0:02:38]} 12. Nc3 {[%clk 0:01:44]}  Ba6 {[%clk 0:02:10]} 13. cxd5 {[%clk 0:01:44]}  cxd5 {[%clk 0:02:10]} 14. Qa4 {[%clk 0:01:35]}  Nb6 {[%clk 0:02:07]} 15. Qc2 {[%clk 0:01:33]}  Rc8 {[%clk 0:01:59]} 16. Rfc1 {[%clk 0:01:33]}  Nc4 {[%clk 0:01:56]} 17. Qb1 {[%clk 0:01:33]}  Bb4 {[%clk 0:01:46]} 18. a3 {[%clk 0:01:20]}  Be7 {[%clk 0:01:44]} 19. Na4 {[%clk 0:01:18]}  Rb8 {[%clk 0:01:34]} 20. Qc2 {[%clk 0:01:14]}  Bg5 {[%clk 0:01:30]} 21. e3 {[%clk 0:01:11]}  Nxe3 {[%clk 0:00:48]} 22. fxe3 {[%clk 0:01:10]}  Bxe3+ {[%clk 0:00:48]} 23. Kh1 {[%clk 0:01:10]}  Bxc1 {[%clk 0:00:48]} 24. Rxc1 {[%clk 0:01:10]}  Qf6 {[%clk 0:00:42]} 25. Nc5 {[%clk 0:01:03]}  Rfc8 {[%clk 0:00:42]} 26. Bc3 {[%clk 0:00:48]}  Bb5 {[%clk 0:00:30]} 27. Qd2 {[%clk 0:00:47]}  a4 {[%clk 0:00:26]} 28. Re1 {[%clk 0:00:39]}  h6 {[%clk 0:00:23]} 29. Bb4 {[%clk 0:00:38]}  Bc6 {[%clk 0:00:15]} 30. Kg1 {[%clk 0:00:37]}  Qg6 {[%clk 0:00:15]} 31. Bf1 {[%clk 0:00:36]}  Bb5 {[%clk 0:00:15]} 32. Bxb5 {[%clk 0:00:32]}  Rxb5 {[%clk 0:00:16]} 33. Nxa4 {[%clk 0:00:32]}  Rc4 {[%clk 0:00:16]} 34. Nc3 {[%clk 0:00:30]}  Rb8 {[%clk 0:00:15]} 35. Na4 {[%clk 0:00:27]}  Qf6 {[%clk 0:00:12]} 36. Nc5 {[%clk 0:00:26]}  Qxd4+ {[%clk 0:00:09]} 37. Qxd4 {[%clk 0:00:25]}  Rxd4 {[%clk 0:00:10]} 38. Ra1 {[%clk 0:00:23]}  Ra8 {[%clk 0:00:10]} 39. Nd7 {[%clk 0:00:21]}  Rxb4 {[%clk 0:00:10]} 0-1


[Site "https://www.chess.com"]

[Event "Titled Tuesday Blitz June 6 Early 2023"]
[White "Weetik, Vjacheslav"]
[Black "Girya, Olga"]
[WhiteFideId "4153472"]
[BlackFideId "4195752"]
[WhiteElo "2469"]
[BlackElo "2263"]
[Result "1-0"]
[Round "9"]
[TimeControl "180+2"]
[Date "2023.06.06"]
[WhiteClock "0:00:33"]
[BlackClock "0:00:02"]
[Board "36"]

1. d4 {[%clk 0:03:00]}  Nf6 {[%clk 0:02:57]} 2. c4 {[%clk 0:03:00]}  e6 {[%clk 0:02:56]} 3. g3 {[%clk 0:03:00]}  d5 {[%clk 0:02:54]} 4. Nf3 {[%clk 0:03:00]}  Be7 {[%clk 0:02:55]} 5. Bg2 {[%clk 0:03:00]}  O-O {[%clk 0:02:55]} 6. O-O {[%clk 0:03:01]}  dxc4 {[%clk 0:02:55]} 7. Qc2 {[%clk 0:03:01]}  a6 {[%clk 0:02:54]} 8. a4 {[%clk 0:03:01]}  Bd7 {[%clk 0:02:53]} 9. Qxc4 {[%clk 0:03:01]}  Bc6 {[%clk 0:02:53]} 10. Bf4 {[%clk 0:03:02]}  Bd6 {[%clk 0:02:52]} 11. Nc3 {[%clk 0:03:02]}  Bxf4 {[%clk 0:02:39]} 12. gxf4 {[%clk 0:03:02]}  a5 {[%clk 0:02:35]} 13. Rad1 {[%clk 0:02:54]}  Na6 {[%clk 0:02:34]} 14. Ne5 {[%clk 0:02:53]}  Bxg2 {[%clk 0:02:34]} 15. Kxg2 {[%clk 0:02:54]}  c6 {[%clk 0:02:14]} 16. e3 {[%clk 0:02:53]}  Qe7 {[%clk 0:02:12]} 17. Kh1 {[%clk 0:02:50]}  Rfd8 {[%clk 0:01:54]} 18. Rg1 {[%clk 0:02:48]}  Nb4 {[%clk 0:01:41]} 19. Rg3 {[%clk 0:02:43]}  c5 {[%clk 0:01:08]} 20. Rdg1 {[%clk 0:02:42]}  g6 {[%clk 0:01:07]} 21. Nb5 {[%clk 0:01:49]}  Rac8 {[%clk 0:00:54]} 22. Qe2 {[%clk 0:01:35]}  Nc6 {[%clk 0:00:36]} 23. Qf3 {[%clk 0:01:22]}  cxd4 {[%clk 0:00:34]} 24. Nxc6 {[%clk 0:01:22]}  bxc6 {[%clk 0:00:32]} 25. Nxd4 {[%clk 0:01:23]}  Qd7 {[%clk 0:00:23]} 26. f5 {[%clk 0:01:19]}  exf5 {[%clk 0:00:21]} 27. Nxf5 {[%clk 0:01:17]}  Kf8 {[%clk 0:00:16]} 28. Nd4 {[%clk 0:01:06]}  Qd5 {[%clk 0:00:16]} 29. h3 {[%clk 0:00:49]}  Qxf3+ {[%clk 0:00:09]} 30. Rxf3 {[%clk 0:00:50]}  Ne4 {[%clk 0:00:09]} 31. Ne6+ {[%clk 0:00:50]}  Ke7 {[%clk 0:00:09]} 32. Nxd8 {[%clk 0:00:50]}  Rxd8 {[%clk 0:00:08]} 33. Rf4 {[%clk 0:00:50]}  f5 {[%clk 0:00:08]} 34. f3 {[%clk 0:00:45]}  Nf2+ {[%clk 0:00:08]} 35. Kh2 {[%clk 0:00:46]}  Rd2 {[%clk 0:00:08]} 36. Rg2 {[%clk 0:00:46]}  Rxb2 {[%clk 0:00:07]} 37. Rh4 {[%clk 0:00:41]}  Kd6 {[%clk 0:00:07]} 38. Rxh7 {[%clk 0:00:41]}  c5 {[%clk 0:00:07]} 39. Rxg6+ {[%clk 0:00:40]}  Kd5 {[%clk 0:00:07]} 40. Rg2 {[%clk 0:00:39]}  c4 {[%clk 0:00:07]} 41. Rc7 {[%clk 0:00:35]}  Rc2 {[%clk 0:00:03]} 42. h4 {[%clk 0:00:35]}  c3 {[%clk 0:00:04]} 43. h5 {[%clk 0:00:35]}  Kd6 {[%clk 0:00:01]} 44. Rc8 {[%clk 0:00:32]}  Kd7 {[%clk 0:00:02]} 45. Rc4 {[%clk 0:00:33]}  Ke6 {[%clk 0:00:02]} 46. h6 {[%clk 0:00:33]} 1-0


[Site "https://www.chess.com"]

[Event "Titled Tuesday Blitz June 6 Early 2023"]
[White "benny_aizenberg"]
[Black "Aldokhin, Ivan"]
[BlackFideId "24115720"]
[WhiteElo "2715"]
[BlackElo "2322"]
[Result "1-0"]
[Round "9"]
[TimeControl "180+2"]
[Date "2023.06.06"]
[WhiteClock "0:01:33"]
[BlackClock "0:00:07"]
[Board "38"]

1. b3 {[%clk 0:02:59]}  d5 {[%clk 0:02:59]} 2. Bb2 {[%clk 0:02:59]}  Bg4 {[%clk 0:02:59]} 3. h3 {[%clk 0:02:56]}  Bh5 {[%clk 0:02:57]} 4. g4 {[%clk 0:02:56]}  Bg6 {[%clk 0:02:56]} 5. Bg2 {[%clk 0:02:57]}  e6 {[%clk 0:02:53]} 6. Nf3 {[%clk 0:02:55]}  Nf6 {[%clk 0:02:46]} 7. O-O {[%clk 0:02:50]}  c5 {[%clk 0:02:44]} 8. d3 {[%clk 0:02:44]}  Nc6 {[%clk 0:02:44]} 9. Nbd2 {[%clk 0:02:41]}  Be7 {[%clk 0:02:26]} 10. Re1 {[%clk 0:02:30]}  Qc7 {[%clk 0:02:18]} 11. e4 {[%clk 0:02:28]}  dxe4 {[%clk 0:02:10]} 12. dxe4 {[%clk 0:02:25]}  O-O-O {[%clk 0:02:10]} 13. Qe2 {[%clk 0:02:24]}  h5 {[%clk 0:02:04]} 14. g5 {[%clk 0:02:20]}  Nh7 {[%clk 0:02:04]} 15. h4 {[%clk 0:02:16]}  f6 {[%clk 0:02:04]} 16. Qe3 {[%clk 0:02:11]}  fxg5 {[%clk 0:01:43]} 17. hxg5 {[%clk 0:02:09]}  Nd4 {[%clk 0:01:43]} 18. Rac1 {[%clk 0:02:04]}  h4 {[%clk 0:01:38]} 19. c3 {[%clk 0:01:52]}  h3 {[%clk 0:01:18]} 20. Bxh3 {[%clk 0:01:51]}  Nxg5 {[%clk 0:01:12]} 21. Nxg5 {[%clk 0:01:50]}  Bxg5 {[%clk 0:01:11]} 22. Qxg5 {[%clk 0:01:50]}  Rxh3 {[%clk 0:01:09]} 23. cxd4 {[%clk 0:01:34]}  Qh2+ {[%clk 0:00:07]} 24. Kf1 {[%clk 0:01:33]} 1-0


[Site "https://www.chess.com"]